bitfinex/quotes_ETHUSD_20240718
["timestamp","ask_amount","ask_price","bid_price","bid_amount"]
[1721335307206,0.07921724,3413.0,3412.8,1.01872009]
[1721335307420,0.07921724,3413.0,3412.7,0.144]
[1721335307638,0.07921724,3413.0,3412.8,1.01870711]
[1721335307841,0.07921724,3413.0,3412.7,0.144]
[1721335308041,0.07921724,3413.0,3412.8,5.47683624]
[1721335308242,2.4015,3413.6,3412.9,6.08983202]
[1721335308414,2.4015,3413.6,3413.0,3.38869624]
[1721335308603,2.4015,3413.6,3413.1,2.54669624]
[1721335308803,2.4015,3413.9,3413.3,2.92965]
[1721335309048,3.2435,3413.9,3413.3,2.92965]
[1721335309343,2.4015,3413.9,3413.3,2.92965]
[1721335309501,0.07955083,3413.8,3413.3,2.92965]
[1721335311007,0.92155083,3413.8,3413.3,2.92965]
[1721335311210,0.07955083,3413.8,3413.3,5.85929]
[1721335311408,0.07955083,3413.8,3413.3,2.92964]
[1721335311729,0.07955083,3413.8,3413.3,5.85928]
[1721335311930,0.07955083,3413.8,3413.4,2.92961]
[1721335314775,0.07955083,3413.8,3413.5,2.92952]
[1721335314971,0.92155083,3413.8,3413.5,2.92952]
[1721335315179,0.07955083,3413.8,3413.5,2.92952]
[1721335315560,3.92611446,3414.1,3413.5,2.92952]
[1721335315746,0.07998395,3413.7,3413.5,2.92952]
[1721335315938,3.92611446,3414.1,3413.5,2.92952]
[1721335315939,0.842,3413.9,3413.5,2.92952]
[1721335316140,0.0799244,3413.6,3413.5,2.92952]
[1721335316339,2.6249691,3414.1,3413.5,2.92952]
[1721335316532,0.0798978,3413.6,3413.5,2.92952]
[1721335317060,0.842,3413.8,3413.5,2.92952]
[1721335317375,0.07986446,3413.6,3413.5,2.92952]
[1721335317537,0.45904763,3413.9,3413.5,2.92952]
[1721335317737,0.07986446,3413.6,3413.5,2.92952]
[1721335318240,0.45904763,3413.9,3413.5,2.92952]
[1721335318446,0.07998357,3413.8,3413.5,2.92952]
[1721335318965,0.92198357,3413.8,3413.5,2.92952]
[1721335319176,0.07998357,3413.8,3413.5,2.92952]
[1721335320741,0.4805836,3413.8,3413.5,2.92952]
[1721335322006,1.3225836,3413.8,3413.5,2.92952]
[1721335322231,0.4805836,3413.8,3413.3,2.92964]
[1721335322687,1.3225836,3413.8,3413.3,2.92964]
[1721335323082,2.3969,3413.7,3413.1,2.92986]
[1721335323264,0.71077412,3413.6,3413.1,2.92986]
[1721335323473,0.842,3413.5,3413.1,2.92986]
[1721335323855,0.07905965,3413.4,3413.1,2.92986]
[1721335324687,0.07896674,3413.3,3413.1,2.92986]
[1721335325053,0.71077412,3413.6,3413.1,2.92986]
[1721335325255,0.07887232,3413.2,3413.1,2.92986]
[1721335325490,0.71077412,3413.6,3413.1,2.92986]
[1721335325677,0.43502742,3413.5,3413.1,2.92986]
[1721335325875,1.35607848,3413.5,3413.1,2.92986]
[1721335326189,0.51407848,3413.5,3413.1,2.92986]
[1721335331404,0.51407848,3413.5,3412.8,2.93014]
[1721335331570,0.51407848,3413.5,3412.9,3.0]
[1721335331774,0.73932726,3413.4,3412.9,3.0]
[1721335332168,0.07609123,3413.3,3412.9,3.0]
[1721335333384,0.07609123,3413.3,3412.8,3.0]
[1721335335117,2.4503,3413.2,3412.8,3.0]
[1721335335476,0.07600393,3413.1,3412.8,3.0]
[1721335336282,0.07600393,3413.1,3412.9,1.01858833]
[1721335336496,0.07600393,3413.1,3412.8,3.0]
[1721335337078,0.07600393,3413.1,3412.9,1.01859887]
[1721335337294,0.07600393,3413.1,3412.8,3.0]
[1721335337499,0.07600393,3413.1,3412.9,1.01859893]
[1721335337699,0.07600393,3413.1,3412.8,3.0]
[1721335337913,0.07600393,3413.1,3412.9,1.01859902]
[1721335338113,0.07600393,3413.1,3412.8,5.93012]
[1721335338297,0.07600393,3413.1,3412.9,2.54642208]
[1721335338515,2.4503,3413.4,3413.0,3.0]
[1721335338717,0.07593313,3413.0,3412.9,5.93005]
[1721335338920,2.4503,3413.4,3412.9,8.47646132]
[1721335339121,2.4503,3413.4,3413.0,2.9299]
[1721335339331,0.07611189,3413.3,3412.9,5.93005]
[1721335339623,0.07611189,3413.3,3413.0,1.0185396]
[1721335339929,3.2923,3413.7,3413.0,2.338]
[1721335340085,2.4503,3413.7,3413.2,2.92975]
[1721335340286,3.77128,3413.9,3413.1,2.92988]
[1721335340287,0.07625871,3413.6,3413.1,2.92988]
[1721335340487,0.07625871,3413.6,3413.3,2.92967]
[1721335340721,3.2923,3413.9,3413.3,5.8593]
[1721335340930,3.2923,3413.9,3413.4,2.92961]
[1721335340931,0.07623105,3413.5,3413.4,2.92961]
[1721335341229,2.4503,3413.9,3413.4,2.92961]
[1721335341436,3.11736972,3413.9,3413.4,2.92961]
[1721335341594,0.07641949,3413.8,3413.4,2.92961]
[1721335342013,0.91841949,3413.8,3413.4,2.92961]
[1721335342336,0.07641949,3413.8,3413.4,2.92961]
[1721335342891,0.842,3413.8,3413.4,2.92961]
[1721335343093,0.07364009,3413.7,3413.4,2.92961]
[1721335343431,3.2923,3413.9,3413.4,2.92961]
[1721335343592,4.25227272,3413.9,3413.4,2.92961]
[1721335343932,0.07369966,3413.8,3413.4,2.92961]
[1721335345930,0.07369966,3413.8,3413.0,10.39108578]
[1721335346108,0.07369966,3413.8,3413.1,3.38814615]
[1721335346448,0.07369966,3413.8,3413.2,2.54614525]
[1721335346612,0.07369966,3413.8,3413.3,1.01844021]
[1721335346941,0.91569966,3413.8,3413.4,2.92957]
[1721335347117,0.07369966,3413.8,3413.4,2.92957]
[1721335347714,0.44092654,3413.8,3413.4,2.92957]
[1721335347931,0.44092654,3413.8,3413.2,5.85947]
[1721335348133,3.3301,3413.7,3413.0,8.05308578]
[1721335348332,2.4881,3413.4,3413.0,7.44]
[1721335348840,0.07296376,3413.3,3413.0,7.44]
[1721335349046,0.91496376,3413.3,3413.0,7.44]
[1721335349246,0.07296376,3413.3,3413.0,7.44]
[1721335352149,0.07296376,3413.3,3412.8,3.61308578]
[1721335352385,0.07296376,3413.3,3412.9,5.47639885]
[1721335352662,2.4881,3413.4,3413.0,8.47633885]
[1721335352663,0.07173559,3413.2,3413.0,8.47633885]
[1721335352870,2.4881,3413.4,3413.0,8.47633885]
[1721335352871,2.4881,3413.4,3413.0,5.92992]
[1721335353025,0.07179518,3413.3,3413.1,1.01856571]
[1721335353221,0.07179518,3413.3,3413.0,5.92992]
[1721335353458,0.07179518,3413.3,3413.1,1.01856404]
[1721335353679,0.07179518,3413.3,3413.0,5.92992]
[1721335353968,0.07179518,3413.3,3413.1,4.32586327]
[1721335354122,2.4881,3413.8,3413.2,2.92975]
[1721335354766,2.4881,3413.8,3413.2,2.92974]
[1721335354942,3.3301,3413.8,3413.2,2.92974]
[1721335355139,2.4881,3413.8,3413.2,2.92974]
[1721335355864,2.4881,3413.8,3413.2,5.85948]
[1721335356643,2.4881,3413.8,3413.2,2.92974]
[1721335356838,0.625926,3413.7,3413.2,2.92974]
[1721335357044,0.842,3413.6,3413.2,2.92974]
[1721335357227,0.625926,3413.7,3413.0,8.85981]
[1721335357431,0.625926,3413.7,3413.1,1.01855895]
[1721335357624,2.4959,3413.6,3413.1,2.92987]
[1721335357862,3.25678518,3413.6,3413.1,2.92987]
[1721335358067,4.09878518,3413.6,3413.1,2.92987]
[1721335358276,3.25678518,3413.6,3413.1,2.92987]
[1721335359043,4.09878518,3413.6,3413.1,2.92987]
[1721335359266,3.25678518,3413.6,3413.1,2.92987]
[1721335359948,4.09878518,3413.6,3413.1,2.92987]
[1721335360151,3.25678518,3413.6,3413.1,2.92987]
[1721335361034,0.76540012,3413.5,3413.0,3.0]
[1721335361235,0.76540012,3413.5,3412.9,0.61308578]
[1721335361236,2.42203894,3413.4,3412.9,3.0]
[1721335361544,2.42203894,3413.4,3413.0,1.01860882]
[1721335361733,2.42203894,3413.4,3412.9,3.0]
[1721335361933,3.26403894,3413.4,3413.0,1.01862615]
[1721335362133,3.18052245,3413.4,3412.9,3.0]
[1721335362335,2.42203894,3413.4,3413.0,1.01862672]
[1721335362569,2.42203894,3413.4,3413.1,1.01857977]
[1721335362743,2.42203894,3413.4,3412.9,3.61308578]
[1721335362949,2.42203894,3413.4,3413.0,2.54643735]
[1721335363172,2.42203894,3413.4,3413.1,1.01857494]
[1721335363375,2.42203894,3413.4,3412.9,3.61308578]
[1721335363534,2.42203894,3413.4,3413.0,2.54644625]
[1721335363734,2.42203894,3413.4,3412.9,3.0]
[1721335363735,2.42203894,3413.4,3413.1,1.0185785]
[1721335363935,2.42203894,3413.4,3412.9,3.0]
[1721335364174,2.42203894,3413.4,3413.0,2.54645641]
[1721335364379,2.42203894,3413.4,3412.9,3.0]
[1721335364685,2.42203894,3413.4,3413.0,2.54645641]
[1721335364968,2.42203894,3413.4,3413.1,1.01858256]
[1721335365175,2.42203894,3413.4,3412.9,5.93005]
[1721335365373,2.42203894,3413.4,3413.0,2.5464555]
[1721335365549,2.42203894,3413.4,3413.1,1.0185822]
[1721335365871,2.42203894,3413.4,3412.9,6.54313578]
[1721335366088,2.42203894,3413.4,3413.0,2.54644586]
[1721335366260,2.42203894,3413.4,3413.1,1.01857834]
[1721335366464,2.42203894,3413.4,3412.9,6.54313578]
[1721335366651,2.42203894,3413.4,3413.0,2.54645122]
[1721335366849,2.42203894,3413.4,3413.1,1.01858049]
[1721335367068,2.42203894,3413.4,3412.9,5.93005]
[1721335367234,2.42203894,3413.4,3413.0,2.54646236]
[1721335367439,2.42203894,3413.4,3413.1,1.01858494]
[1721335367652,2.42203894,3413.4,3412.9,5.93005]
[1721335367853,2.42203894,3413.4,3413.0,2.5464633]
[1721335368071,2.42203894,3413.4,3413.1,1.01858532]
[1721335368277,2.42203894,3413.4,3412.9,5.93005]
[1721335368473,2.42203894,3413.4,3413.0,2.54646283]
[1721335368639,2.42203894,3413.4,3412.9,5.93005]
[1721335368640,2.42203894,3413.4,3413.1,1.01858513]
[1721335368841,2.42203894,3413.4,3412.9,6.54313578]
[1721335369047,2.42203894,3413.4,3413.0,2.54645882]
[1721335369237,2.42203894,3413.4,3413.1,1.01858353]
[1721335369454,2.42203894,3413.4,3412.9,5.93005]
[1721335369681,2.42203894,3413.4,3413.0,2.54647093]
[1721335369886,2.42203894,3413.4,3412.9,5.93005]
[1721335370088,2.42203894,3413.4,3413.0,2.54647265]
[1721335370294,2.42203894,3413.4,3412.9,5.93005]
[1721335370443,2.42203894,3413.4,3413.0,2.54646836]
[1721335370646,2.42203894,3413.4,3412.9,5.93005]
[1721335370895,2.42203894,3413.4,3413.0,2.54647307]
[1721335371089,2.42203894,3413.4,3413.1,1.01858923]
[1721335371388,2.42203894,3413.4,3412.9,5.93005]
[1721335371563,2.42203894,3413.4,3413.0,2.54645571]
[1721335371762,2.42203894,3413.4,3412.9,5.93005]
[1721335372252,2.42203894,3413.4,3413.0,2.54646936]
[1721335372462,2.42203894,3413.4,3412.9,5.93005]
[1721335372662,2.42203894,3413.4,3413.0,5.47643938]
[1721335372902,2.42203894,3413.4,3413.1,1.01858159]
[1721335373103,2.42203894,3413.4,3413.0,2.92997]
[1721335373273,2.42203894,3413.4,3413.1,1.01858158]
[1721335373477,2.42203894,3413.4,3413.0,2.92997]
[1721335373663,2.42203894,3413.4,3413.1,1.01858206]
[1721335373863,2.42203894,3413.4,3413.0,2.92997]
[1721335374200,2.42203894,3413.4,3413.1,1.01857938]
[1721335374494,2.42203894,3413.4,3412.9,5.93005]
[1721335374700,2.42203894,3413.4,3413.0,1.01860003]
[1721335374860,2.42203894,3413.4,3412.9,5.93005]
[1721335375063,2.42203894,3413.4,3413.0,2.54648252]
[1721335375287,2.42203894,3413.4,3412.9,5.93005]
[1721335375485,2.42203894,3413.4,3413.0,2.54646342]
[1721335375687,2.42203894,3413.4,3412.9,5.93]
[1721335375899,2.42203894,3413.4,3413.0,2.5464762]
[1721335376063,2.42203894,3413.4,3412.9,5.93]
[1721335376267,2.42203894,3413.4,3413.0,2.54647288]
[1721335376493,2.42203894,3413.4,3412.9,5.93]
[1721335376701,2.42203894,3413.4,3413.0,2.54646233]
[1721335376869,2.42203894,3413.4,3412.9,5.93]
[1721335377070,2.42203894,3413.4,3413.0,2.54647463]
[1721335377281,2.42203894,3413.4,3412.9,5.93]
[1721335377495,2.42203894,3413.4,3413.0,2.54646085]
[1721335377716,2.42203894,3413.4,3412.9,5.93]
[1721335377926,2.42203894,3413.4,3413.0,2.54647516]
[1721335378093,2.42203894,3413.4,3412.9,5.93]
[1721335378292,2.42203894,3413.4,3413.0,2.54646015]
[1721335378502,2.42203894,3413.4,3412.9,5.93]
[1721335378697,2.42203894,3413.4,3413.0,2.54647458]
[1721335378891,2.42203894,3413.4,3412.9,8.86]
[1721335379110,2.42203894,3413.4,3413.0,2.54646628]
[1721335379312,2.42203894,3413.4,3413.1,1.01858651]
[1721335379621,2.42203894,3413.4,3412.9,5.92999]
[1721335379781,2.42203894,3413.4,3413.0,2.54646473]
[1721335380135,2.42203894,3413.4,3413.1,1.01858589]
[1721335380305,2.42203894,3413.4,3412.9,8.85999]
[1721335380478,2.42203894,3413.4,3413.0,2.5464649]
[1721335380682,2.42203894,3413.4,3413.1,1.01858596]
[1721335380880,2.42203894,3413.4,3412.9,9.47307578]
[1721335381137,2.42203894,3413.4,3413.0,5.47642783]
[1721335381292,2.42203894,3413.4,3413.1,1.01858313]
[1721335381477,2.42203894,3413.4,3413.0,2.92997]
[1721335381680,2.42203894,3413.4,3413.1,1.01857716]
[1721335381893,2.42203894,3413.4,3413.0,2.92997]
[1721335382095,2.42203894,3413.4,3413.1,1.018581]
[1721335382319,2.42203894,3413.4,3413.0,2.92997]
[1721335382566,2.42203894,3413.4,3413.1,1.01857639]
[1721335382764,2.42203894,3413.4,3413.0,2.92997]
[1721335385677,0.06923894,3413.4,3413.1,2.54642194]
[1721335385837,0.06923894,3413.4,3413.2,2.92973]
[1721335386041,2.4029,3413.7,3413.3,2.9297]
[1721335388759,0.06171283,3413.6,3413.3,2.9297]
[1721335390748,0.06171283,3413.6,3413.2,2.9298]
[1721335392195,0.06171283,3413.6,3413.0,0.61308578]
[1721335392196,3.77164,3413.4,3413.0,0.61308578]
[1721335392398,3.77164,3413.4,3412.9,7.44]
[1721335392553,0.061412,3413.3,3412.9,7.44]
[1721335393863,0.061412,3413.3,3412.7,3.68730578]
[1721335394161,0.061412,3413.3,3412.8,5.54663445]
[1721335394373,0.061412,3413.3,3412.9,1.01865378]
[1721335394575,0.061412,3413.3,3412.8,3.0]
[1721335394752,0.061412,3413.3,3412.9,1.01865078]
[1721335394953,0.061412,3413.3,3412.8,3.0]
[1721335395148,0.061412,3413.3,3412.9,1.01865513]
[1721335395385,0.061412,3413.3,3412.8,3.0]
[1721335395558,0.061412,3413.3,3412.9,1.01866246]
[1721335395759,0.061412,3413.3,3412.8,3.0]
[1721335395992,0.061412,3413.3,3412.9,1.01866265]
[1721335396302,0.061412,3413.3,3412.8,3.0]
[1721335396599,0.061412,3413.3,3412.9,1.01865373]
[1721335396898,0.061412,3413.3,3412.8,3.0]
[1721335397066,0.061412,3413.3,3412.9,1.0186585]
[1721335397256,0.061412,3413.3,3412.8,3.0]
[1721335397452,0.061412,3413.3,3412.9,1.0186536]
[1721335397653,0.061412,3413.3,3412.8,5.93008]
[1721335397997,2.3412,3413.2,3412.9,1.01866485]
[1721335398312,2.3412,3413.2,3412.8,5.93008]
[1721335398448,2.3412,3413.2,3412.9,1.01865583]
[1721335398791,2.3412,3413.2,3412.8,5.93008]
[1721335398991,2.3412,3413.2,3412.9,1.01866046]
[1721335399151,2.952484,3413.2,3412.7,6.07418]
[1721335399347,2.952484,3413.2,3412.8,1.0186738]
[1721335399576,2.952484,3413.2,3412.7,6.07418]
[1721335399851,2.952484,3413.2,3412.8,2.54667531]
[1721335400087,2.952484,3413.2,3412.7,6.07418]
[1721335400294,2.952484,3413.2,3412.8,1.01867909]
[1721335400452,2.952484,3413.2,3412.7,6.07418]
[1721335400651,2.952484,3413.2,3412.8,1.01867903]
[1721335400886,2.952484,3413.2,3412.7,6.07418]
[1721335401089,2.952484,3413.2,3412.8,1.01867593]
[1721335401285,2.952484,3413.2,3412.7,6.07418]
[1721335401491,2.3412,3413.2,3412.8,1.01867946]
[1721335401691,2.3412,3413.2,3412.7,6.07418]
[1721335401894,2.3412,3413.2,3412.8,1.01868181]
[1721335402194,2.3412,3413.2,3412.7,6.07418]
[1721335402396,2.3412,3413.2,3412.8,3.94880671]
[1721335402566,0.06125242,3413.1,3412.8,2.93013]
[1721335404894,0.06125242,3413.1,3412.7,3.144]
[1721335405071,0.06125242,3413.1,3412.8,1.01867635]
[1721335405396,0.06125242,3413.1,3412.7,0.144]
[1721335405693,0.06125242,3413.1,3412.8,1.01867484]
[1721335405857,0.06125242,3413.1,3412.7,0.144]
[1721335406058,0.06125242,3413.1,3412.8,1.01866753]
[1721335406254,0.06125242,3413.1,3412.7,0.144]
[1721335406761,0.06125242,3413.1,3412.8,1.01867444]
[1721335406967,0.06125242,3413.1,3412.7,0.144]
[1721335407171,0.06125242,3413.1,3412.8,1.01867447]
[1721335407391,0.06125242,3413.1,3412.7,0.144]
[1721335407607,0.06125242,3413.1,3412.8,1.01867491]
[1721335407755,0.06125242,3413.1,3412.7,0.144]
[1721335407961,2.3412,3413.2,3412.7,0.144]
[1721335408160,0.611292,3413.1,3412.7,0.144]
[1721335409407,0.842,3413.0,3412.7,0.144]
[1721335409558,2.4381,3412.9,3412.7,0.144]
[1721335409873,2.49924645,3412.9,3412.7,0.144]
[1721335418713,3.2014,3412.8,3412.7,0.144]
[1721335418878,3.82066765,3412.8,3412.7,0.144]
[1721335419282,3.82066765,3412.8,3411.4,7.44]
[1721335419283,2.3594,3411.6,3411.4,7.44]
[1721335419503,2.3594,3411.6,3410.9,2.93171]
[1721335419504,0.842,3411.5,3410.9,2.93171]
[1721335419667,2.3594,3411.6,3410.8,7.44]
[1721335419668,0.842,3411.2,3410.8,7.44]
[1721335420172,0.05844121,3411.1,3410.8,7.44]
[1721335421467,0.842,3411.0,3410.8,7.44]
[1721335421774,2.98963783,3410.9,3410.8,7.44]
[1721335422007,2.98963783,3410.9,3410.2,2.93236]
[1721335422191,0.05786783,3410.9,3410.3,2.93228]
[1721335424219,3.77391,3410.8,3410.1,7.44]
[1721335424513,0.842,3410.6,3410.1,7.44]
[1721335424806,0.05778658,3410.5,3410.1,7.44]
[1721335426108,2.932,3410.7,3410.1,7.44]
[1721335426328,0.05789815,3410.4,3410.1,7.44]
[1721335426533,2.932,3410.7,3410.1,7.44]
[1721335426830,3.843336,3410.7,3410.1,7.44]
[1721335427133,0.05801748,3410.6,3410.1,7.44]
[1721335427834,0.05801748,3410.6,3410.2,0.842]
[1721335428035,3.77362,3411.1,3410.2,0.842]
[1721335428330,0.05819746,3411.0,3410.2,0.842]
[1721335428492,0.67395921,3411.0,3410.2,0.842]
[1721335428698,0.67395921,3411.0,3410.2,3.1207]
[1721335429337,0.67395921,3411.0,3410.3,2.93226]
[1721335433048,0.67395921,3411.0,3410.4,2.9322]
[1721335438641,0.67395921,3411.0,3410.4,5.86433]
[1721335439042,0.67395921,3411.0,3410.4,2.93213]
[1721335439203,0.67395921,3411.0,3410.4,5.86428]
[1721335440634,0.67395921,3411.0,3410.5,2.93211]
[1721335441649,0.05819746,3411.0,3410.6,2.93197]
[1721335441946,0.842,3411.2,3410.7,2.93192]
[1721335442119,0.05422561,3410.9,3410.7,2.93192]
[1721335442515,0.842,3411.2,3410.7,2.93192]
[1721335442720,0.05416596,3410.8,3410.7,2.93192]
[1721335442903,0.842,3411.2,3410.7,2.93192]
[1721335443108,0.05416596,3410.8,3410.5,2.93204]
[1721335443428,0.05411005,3410.7,3410.5,2.93204]
[1721335443741,0.842,3411.0,3410.5,2.93204]
[1721335443905,0.05405039,3410.6,3410.5,2.93204]
[1721335444106,0.842,3411.0,3410.6,2.93201]
[1721335444548,0.05422936,3410.9,3410.6,2.93201]
[1721335444706,0.2055303,3410.9,3410.6,2.93201]
[1721335448653,2.4413,3410.8,3410.6,2.93201]
[1721335448852,0.05411005,3410.7,3410.6,2.93201]
[1721335449016,2.4413,3410.8,3410.6,2.93201]
[1721335449213,0.05411005,3410.7,3410.6,2.93201]
[1721335449445,2.4413,3410.8,3410.6,2.93201]
[1721335449744,0.05411005,3410.7,3410.6,2.93201]
[1721335449949,0.40298115,3410.7,3410.1,7.44]
[1721335450111,0.3488711,3410.7,3410.2,2.93236]
[1721335450447,0.05379797,3410.6,3410.2,2.93236]
[1721335452355,0.05379797,3410.6,3410.1,7.44]
[1721335452356,0.842,3410.3,3410.1,7.44]
[1721335452589,0.612336,3410.2,3410.1,7.44]
[1721335452730,0.66560246,3410.2,3410.1,7.44]
[1721335453422,0.66560246,3410.2,3409.5,10.37292]
[1721335454123,0.842,3410.1,3409.5,10.37292]
[1721335454322,0.842,3410.1,3409.5,2.93292]
[1721335454643,0.05330693,3410.0,3409.5,2.93292]
[1721335454811,0.758336,3410.2,3409.6,2.93289]
[1721335455012,0.05348675,3410.1,3409.7,2.93279]
[1721335455348,0.146,3410.2,3409.7,2.93279]
[1721335455642,0.05356668,3410.1,3409.7,2.93279]
[1721335465253,2.3207,3410.0,3409.7,2.93279]
[1721335465453,0.05152713,3409.9,3409.7,2.93279]
[1721335466268,0.146,3410.2,3409.7,2.93279]
[1721335466482,0.05171044,3410.1,3409.7,2.93279]
[1721335467286,0.05171044,3410.1,3409.8,2.93271]
[1721335468908,0.05171044,3410.1,3409.9,2.93263]
[1721335469072,0.05171044,3410.1,3410.0,5.8651]
[1721335469291,0.146,3410.2,3410.1,2.93246]
[1721335469776,0.19774489,3410.2,3410.1,2.93246]
[1721335473062,2.48594489,3410.2,3409.9,2.93256]
[1721335473990,2.48594489,3410.2,3410.0,2.93253]
[1721335478595,2.73453938,3410.2,3409.6,2.93281]
[1721335478963,2.68279449,3410.2,3409.6,2.93281]
[1721335479693,2.68279449,3410.2,3409.7,2.93278]
[1721335480210,0.04939013,3410.1,3409.7,2.93278]
[1721335480401,0.04939013,3410.1,3409.8,2.93271]
[1721335481703,0.04939013,3410.1,3410.0,2.93255]
[1721335482501,0.146,3410.2,3410.0,2.93255]
[1721335483113,0.04938788,3410.1,3410.0,2.93255]
[1721335488126,0.04938788,3410.1,3409.8,2.93271]
[1721335488127,2.38718788,3410.1,3409.8,5.86535]
[1721335488479,0.04938788,3410.1,3409.9,2.93262]
[1721335495691,2.3803,3410.0,3409.9,2.93262]
[1721335495896,2.42884355,3410.0,3409.9,3.95217684]
[1721335496784,0.04854355,3410.0,3409.9,3.95217684]
[1721335497036,0.146,3410.2,3409.9,3.95217684]
[1721335497216,0.146,3410.2,3409.9,2.93262]
[1721335497391,0.04860324,3410.1,3409.9,2.93262]
[1721335501493,0.04860324,3410.1,3410.0,1.01952842]
[1721335501795,0.04860324,3410.1,3409.9,2.93262]
[1721335502422,0.04860324,3410.1,3410.0,1.01953681]
[1721335503148,0.29343356,3410.1,3409.7,0.61539932]
[1721335503349,0.29343356,3410.1,3409.8,1.01961783]
[1721335503492,0.29343356,3410.1,3409.6,3.54822932]
[1721335503696,2.4179,3410.0,3409.7,2.5490424]
[1721335503930,2.4179,3410.0,3409.8,1.01961696]
[1721335504249,0.04847861,3409.9,3409.6,2.93283]
[1721335504426,0.04847861,3409.9,3409.7,2.54905751]
[1721335504739,0.04841891,3409.8,3409.6,2.93283]
[1721335504906,0.04841891,3409.8,3409.7,2.54905755]
[1721335505230,2.4179,3410.0,3409.7,2.54905755]
[1721335505539,2.4179,3410.0,3409.6,2.93283]
[1721335505827,0.04847861,3409.9,3409.7,2.54905703]
[1721335506035,2.4179,3410.0,3409.6,2.93283]
[1721335506240,0.04841891,3409.8,3409.7,2.5490571]
[1721335506737,2.4179,3410.0,3409.7,2.5490571]
[1721335507034,0.04841891,3409.8,3409.6,2.93283]
[1721335507194,2.4179,3410.0,3409.7,2.54905513]
[1721335507393,2.96752,3410.0,3409.6,2.93283]
[1721335507632,0.04847861,3409.9,3409.7,1.01962172]
[1721335507845,0.04847861,3409.9,3409.6,2.93283]
[1721335508033,0.04847861,3409.9,3409.7,1.0196219]
[1721335508229,0.04847861,3409.9,3409.6,2.93283]
[1721335508547,0.04847861,3409.9,3409.7,1.01962168]
[1721335508748,0.04847861,3409.9,3409.6,2.93283]
[1721335508936,0.04847861,3409.9,3409.7,1.01962196]
[1721335509253,0.04847861,3409.9,3409.6,2.93283]
[1721335509615,0.04847861,3409.9,3409.7,1.01962165]
[1721335509814,0.04847861,3409.9,3409.6,2.93283]
[1721335510143,0.04847861,3409.9,3409.7,1.01962194]
[1721335510324,0.04847861,3409.9,3409.6,2.93283]
[1721335510526,0.04847861,3409.9,3409.7,1.01962205]
[1721335510726,0.04847861,3409.9,3409.5,0.61539932]
[1721335510937,0.04847861,3409.9,3409.4,2.93302]
[1721335511256,0.68716347,3409.9,3409.5,1.01966425]
[1721335511419,0.68716347,3409.9,3409.4,2.93302]
[1721335511620,0.68716347,3409.9,3409.5,1.01967105]
[1721335511835,0.04847861,3409.9,3409.6,1.01968184]
[1721335512037,2.4179,3410.0,3409.5,2.93293]
[1721335512254,2.4179,3410.0,3409.6,1.01964092]
[1721335512458,0.04847861,3409.9,3409.6,2.93289]
[1721335512759,0.146,3410.2,3409.9,2.93255]
[1721335512979,0.146,3410.2,3410.1,0.842]
[1721335513353,0.146,3410.2,3410.0,2.93253]
[1721335515553,0.04826183,3410.1,3410.0,2.93253]
[1721335515874,0.04826183,3410.1,3410.0,11.41325992]
[1721335516082,0.146,3410.2,3410.1,5.86492]
[1721335516244,0.146,3410.2,3410.1,14.54159174]
[1721335516589,0.146,3410.2,3410.1,13.61849275]
[1721335517272,0.146,3410.2,3410.1,14.54070687]
[1721335518270,0.146,3410.2,3410.1,11.57988495]
[1721335519188,0.146,3410.2,3410.1,9.03152]
[1721335519487,0.146,3410.2,3410.1,9.02743108]
[1721335519697,0.146,3410.2,3410.1,9.0274556]
[1721335520258,0.146,3410.2,3410.1,8.41328948]
[1721335521498,0.146,3410.2,3410.1,9.25528948]
[1721335522785,0.146,3410.2,3410.1,9.25530433]
[1721335523362,0.146,3410.2,3410.1,14.46196433]
[1721335523700,2.93119,3411.6,3410.8,2.93184]
[1721335523701,2.3601,3411.3,3410.8,2.93184]
[1721335523925,0.04958096,3411.2,3410.8,2.93184]
[1721335524397,2.889229,3411.3,3410.8,2.93184]
[1721335524603,0.04954808,3411.1,3410.8,2.93184]
[1721335524804,2.3601,3411.3,3410.8,2.93184]
[1721335524805,0.04960772,3411.2,3410.8,2.93184]
[1721335525000,0.04948844,3411.0,3410.8,2.93184]
[1721335525168,2.3601,3411.3,3410.8,2.93184]
[1721335525368,0.04942879,3410.9,3410.8,2.93184]
[1721335525569,2.3601,3411.3,3410.8,2.93184]
[1721335526109,0.04905846,3411.2,3410.8,2.93184]
[1721335526402,2.3601,3411.3,3410.8,2.93184]
[1721335526566,0.0489988,3411.1,3410.8,2.93184]
[1721335526891,0.04893914,3411.0,3410.8,2.93184]
[1721335527077,2.3601,3411.3,3410.8,2.93184]
[1721335527280,0.04905846,3411.2,3410.8,2.93184]
[1721335527479,2.3601,3411.3,3410.8,2.93184]
[1721335527789,0.04905846,3411.2,3410.8,5.86363]
[1721335528192,2.3601,3411.3,3410.8,5.86363]
[1721335528507,0.04905846,3411.2,3410.8,5.86363]
[1721335528700,2.3601,3411.3,3410.9,2.93175]
[1721335528878,0.04905846,3411.2,3410.9,2.93175]
[1721335529067,2.3601,3411.3,3410.9,2.93175]
[1721335529268,0.04905846,3411.2,3410.9,2.93175]
[1721335529467,2.3601,3411.3,3410.9,2.93175]
[1721335529705,0.04905846,3411.2,3410.9,2.93175]
[1721335529894,2.3601,3411.3,3410.9,2.93175]
[1721335530080,0.04905846,3411.2,3410.9,2.93175]
[1721335530400,2.3601,3411.3,3410.7,2.93187]
[1721335530588,0.0489988,3411.1,3410.8,2.93186]
[1721335530782,2.3601,3411.3,3410.8,2.93186]
[1721335530982,0.04893914,3411.0,3410.8,2.93186]
[1721335531184,0.842,3411.0,3410.4,13.30432]
[1721335531369,0.842,3410.8,3410.4,7.44]
[1721335531587,0.842,3410.6,3410.4,7.44]
[1721335531789,2.2989,3410.5,3409.8,2.93264]
[1721335532113,0.842,3410.2,3409.7,7.44]
[1721335532289,0.04888097,3410.1,3409.6,2.93285]
[1721335532689,3.77423,3410.4,3409.6,2.93285]
[1721335532890,4.674756,3410.4,3409.6,2.93285]